bitfinex/quotes_SOLUSD_20250522
["timestamp","ask_amount","ask_price","bid_price","bid_amount"]
[1747930178588,22.50328979,179.3,179.22,24.22928903]
[1747930179886,16.92582213,179.32,179.25,26.0]
[1747930180089,22.50213395,179.33,179.25,26.0]
[1747930180314,22.50213395,179.33,179.26,18.64964886]
[1747930180597,5.57583977,179.35,179.26,18.64964886]
[1747930180775,5.57583977,179.35,179.29,26.0]
[1747930181979,5.57583977,179.35,179.31,26.0]
[1747930183097,5.57583977,179.35,179.29,31.57753145]
[1747930183699,7.088736,179.4,179.33,26.0]
[1747930183994,24.01455813,179.4,179.33,26.0]
[1747930184211,5.57333343,179.43,179.37,26.0]
[1747930184367,7.08754777,179.44,179.37,26.0]
[1747930184563,1.5146,179.44,179.36,18.64964886]
[1747930184771,18.44042213,179.44,179.36,44.64964886]
[1747930185493,24.01340112,179.44,179.36,44.64964886]
[1747930186087,37.94563473,179.44,179.36,44.64964886]
[1747930186286,16.92582213,179.43,179.36,26.0]
[1747930187704,19.50730129,179.42,179.36,26.0]
[1747930189706,13.93378664,179.42,179.36,26.0]
[1747930191709,16.92582213,179.41,179.36,26.0]
[1747930191919,19.50947602,179.4,179.33,102.58904886]
[1747930192097,19.50947602,179.4,179.33,20.28904886]
[1747930192277,19.50947602,179.4,179.34,26.0]
[1747930193791,13.93534002,179.4,179.34,26.0]
[1747930198299,13.93534002,179.4,179.34,25.96813598]
[1747930198554,19.50947602,179.4,179.34,25.96813598]
[1747930200298,16.92582213,179.38,179.29,83.9488]
[1747930200501,16.92582213,179.35,179.27,6.4991]
[1747930200696,16.92582213,179.35,179.28,26.0]
[1747930201080,16.92582213,179.36,179.28,26.0]
[1747930201280,0.63230641,179.39,179.25,1.6488]
[1747930201281,16.92582213,179.33,179.25,1.6488]
[1747930201499,16.92582213,179.32,179.24,7.9607066]
[1747930201700,16.92582213,179.32,179.27,26.0]
[1747930201908,5.57674951,179.32,179.27,26.0]
[1747930202116,5.57628913,179.34,179.27,26.0]
[1747930202421,5.57537912,179.36,179.28,18.64964886]
[1747930202590,22.50120125,179.36,179.28,18.64964886]
[1747930202985,22.50120125,179.36,179.27,26.0]
[1747930202986,16.92582213,179.35,179.27,18.64964886]
[1747930203287,36.43964906,179.36,179.27,18.64964886]
[1747930203486,36.43964906,179.36,179.28,26.0]
[1747930204211,16.92582213,179.35,179.24,18.79181043]
[1747930204417,16.92582213,179.32,179.27,26.0]
[1747930205997,5.5769338,179.31,179.27,26.0]
[1747930206399,5.5769338,179.31,179.23,6.4573]
[1747930207122,5.5769338,179.31,179.23,12.03665099]
[1747930207420,5.5769338,179.31,179.24,26.0]
[1747930207790,36.44509043,179.31,179.24,26.0]
[1747930208529,16.92582213,179.29,179.21,1.6003]
[1747930208721,16.92582213,179.28,179.22,26.0]
[1747930208892,16.92582213,179.26,179.18,6.2879]
[1747930209096,16.92582213,179.25,179.18,6.2879]
[1747930209312,16.92582213,179.26,179.18,6.2879]
[1747930209602,16.92582213,179.27,179.19,26.0]
[1747930210019,36.44509043,179.31,179.23,26.0]
[1747930210208,19.5192683,179.31,179.23,31.57937059]
[1747930210419,5.5769338,179.31,179.27,26.0]
[1747930210726,5.57670223,179.32,179.27,26.0]
[1747930211020,5.57600089,179.34,179.28,26.0]
[1747930211400,22.50182302,179.34,179.25,6.5563]
[1747930211704,16.92582213,179.33,179.26,26.0]
[1747930211912,16.92582213,179.31,179.25,26.0]
[1747930212422,36.44617907,179.3,179.25,26.0]
[1747930212620,19.52035694,179.3,179.25,26.0]
[1747930213412,36.44617907,179.3,179.22,44.64964886]
[1747930213714,36.44617907,179.3,179.22,26.0]
[1747930213910,5.57724484,179.3,179.22,31.5796641]
[1747930214218,5.57724484,179.3,179.23,18.64964886]
[1747930214603,5.57724484,179.3,179.22,26.0]
[1747930214926,22.50306697,179.3,179.22,26.0]
[1747930215631,5.57724484,179.3,179.22,26.0]
[1747930215824,36.44617907,179.3,179.22,26.0]
[1747930216124,36.44617907,179.3,179.17,6.5497]
[1747930216125,16.92582213,179.27,179.17,6.5497]
[1747930216313,16.92582213,179.27,179.21,26.0]
[1747930217024,5.57848934,179.26,179.21,26.0]
[1747930217329,22.50431147,179.26,179.17,6.5497]
[1747930217531,22.50431147,179.26,179.18,26.0]
[1747930218031,36.45053483,179.26,179.18,26.0]
[1747930219136,5.57755591,179.29,179.22,26.0]
[1747930219335,5.57631182,179.33,179.24,27.5504]
[1747930219508,5.57631182,179.33,179.28,26.0]
[1747930219835,36.44291351,179.33,179.28,26.0]
[1747930220515,5.57631182,179.33,179.28,26.0]
[1747930221128,5.57600089,179.34,179.28,26.0]
[1747930222438,5.57600089,179.34,179.29,26.0]
[1747930222949,5.57537912,179.36,179.29,26.0]
[1747930223434,27.11127599,179.38,179.29,26.0]
[1747930223435,5.57506829,179.37,179.29,26.0]
[1747930223611,46.62401501,179.37,179.29,26.0]
[1747930225527,27.11127599,179.36,179.29,26.0]
[1747930225729,27.11127599,179.35,179.29,26.0]
[1747930225924,27.11127599,179.36,179.29,26.0]
[1747930226236,19.51273902,179.37,179.29,26.0]
[1747930226437,46.62401501,179.37,179.29,26.0]
[1747930227035,19.51273902,179.37,179.29,31.5775289]
[1747930227236,5.57506829,179.37,179.29,31.5775289]
[1747930228247,32.68634428,179.37,179.3,26.0]
[1747930229033,19.51273902,179.37,179.3,26.0]
[1747930229231,5.57506829,179.37,179.3,26.0]
[1747930229528,5.57475749,179.38,179.3,31.57704971]
[1747930230342,19.51165123,179.38,179.3,26.0]
[1747930230545,27.11127599,179.37,179.3,26.0]
[1747930231437,5.57537912,179.36,179.3,26.0]
[1747930232441,5.57537912,179.36,179.2,96.2504157]
[1747930232442,27.11127599,179.32,179.2,96.2504157]
[1747930232643,27.11127599,179.32,179.21,18.79181043]
[1747930232851,27.11127599,179.33,179.24,26.0]
[1747930233639,5.57662279,179.32,179.24,26.0]
[1747930234154,5.57662279,179.32,179.25,18.64964886]
[1747930236147,19.51623862,179.34,179.25,18.64964886]
[1747930237241,5.57444673,179.39,179.3,18.64964886]
[1747930237451,5.57444673,179.39,179.33,26.0]
[1747930238328,13.93482709,179.41,179.34,26.0]
[1747930238623,13.93482709,179.41,179.35,26.0]
[1747930241047,27.11127599,179.38,179.28,18.64964886]
[1747930241365,27.11127599,179.38,179.31,26.0]
[1747930241531,27.11127599,179.38,179.26,12.28509443]
[1747930241840,36.45498012,179.36,179.26,6.5645]
[1747930242051,16.94115319,179.35,179.26,6.5645]
[1747930242355,16.94115319,179.34,179.26,6.5645]
[1747930242521,16.94115319,179.34,179.24,26.61035546]
[1747930242722,16.94115319,179.34,179.24,7.9607066]
[1747930243137,16.94115319,179.34,179.24,13.53977338]
[1747930243365,16.94115319,179.34,179.25,26.0]
[1747930243856,5.57631182,179.33,179.25,26.0]
[1747930244039,5.57631182,179.33,179.26,26.0]
[1747930245345,31.57600089,179.34,179.23,24.22907194]
[1747930248467,31.57600089,179.34,179.25,5.57880055]
[1747930250373,48.51715408,179.34,179.26,36.18]
[1747930250860,62.45715631,179.34,179.26,36.18]
[1747930251562,62.45715631,179.34,179.24,5.57909912]
[1747930251757,62.45715631,179.34,179.27,36.06]
[1747930253541,62.45715631,179.34,179.28,33.42]
[1747930255749,62.45715631,179.34,179.27,36.06]
[1747930255956,62.45715631,179.34,179.28,33.42]
[1747930256371,62.45715631,179.34,179.29,36.06]
[1747930257665,5.57600089,179.34,179.29,36.06]
[1747930257986,31.57537912,179.36,179.29,36.06]
[1747930258282,5.57537912,179.36,179.29,41.63750043]
[1747930258612,5.57382531,179.41,179.3,25.36251043]
[1747930258746,5.57382531,179.41,179.32,18.64964886]
[1747930258944,5.57382531,179.41,179.33,33.44]
[1747930259872,5.57382531,179.41,179.34,5.57600089]
[1747930260078,5.57382531,179.41,179.35,36.06]
[1747930260573,5.57289344,179.44,179.35,36.06]
[1747930260942,5.57289344,179.44,179.36,18.64964886]
[1747930261267,13.92865405,179.49,179.39,18.64964886]
[1747930261570,26.0,179.47,179.4,33.42]
[1747930261871,31.57220386,179.47,179.41,36.06]
[1747930263460,31.57220386,179.47,179.38,6.439]
[1747930263667,16.94115319,179.46,179.39,69.46]
[1747930264076,5.57258289,179.45,179.39,69.46]
[1747930266658,5.57227237,179.46,179.39,69.46]
[1747930267388,5.57204551,179.47,179.4,18.64964886]
[1747930268383,5.57134102,179.49,179.4,24.22356317]
[1747930269977,5.57134102,179.49,179.41,0.14216157]
[1747930270390,5.57040998,179.52,179.41,0.14216157]
[1747930272377,5.57040998,179.52,179.43,18.79181043]
[1747930272579,5.57040998,179.52,179.44,33.42]
[1747930272878,5.57040998,179.52,179.46,18.64964886]
[1747930273471,5.57040998,179.52,179.46,25.03184886]
[1747930273660,5.5700361,179.54,179.46,25.03184886]
[1747930273863,5.5700361,179.54,179.46,29.43419033]
[1747930274088,1.5668,179.59,179.47,0.14216157]
[1747930274291,165.84181374,179.63,179.51,5.57072029]
[1747930274501,26.0,179.6,179.53,18.64964886]
[1747930274660,27.07501374,179.61,179.52,69.44]
[1747930274860,27.07501374,179.59,179.52,69.44]
[1747930275086,27.07501374,179.6,179.52,69.44]
[1747930276306,5.56823876,179.59,179.52,69.44]
[1747930276473,5.56823876,179.59,179.5,227.10964886]
[1747930276474,27.07501374,179.57,179.53,69.42]
[1747930276667,27.07501374,179.56,179.53,69.42]
[1747930277410,27.07501374,179.56,179.54,36.02]
[1747930277717,27.07501374,179.57,179.54,36.02]
[1747930277932,53.07501374,179.58,179.54,36.02]
[1747930278213,19.48883567,179.59,179.54,36.02]
[1747930279413,5.56823876,179.59,179.54,36.02]
[1747930280409,5.56730876,179.62,179.55,18.64964886]
[1747930281387,5.56606924,179.66,179.55,24.21912131]
[1747930281707,5.56606924,179.66,179.56,0.14216157]
[1747930282211,5.56606924,179.66,179.59,18.79181043]
[1747930282388,5.56606924,179.66,179.61,18.64964886]
[1747930282586,5.56575944,179.67,179.61,18.64964886]
[1747930283104,19.48015805,179.67,179.61,18.64964886]
[1747930284802,19.48015805,179.67,179.6,69.56]
[1747930285001,19.48015805,179.67,179.61,18.64964886]
[1747930286917,13.91439861,179.67,179.61,18.64964886]
[1747930288990,32.6401537,179.69,179.61,18.64964886]
[1747930289699,46.5530036,179.69,179.62,6.0219]
[1747930289904,19.47798986,179.69,179.62,6.0219]
[1747930290690,46.5530036,179.69,179.62,6.0219]
[1747930291700,36.35961055,179.69,179.62,6.0219]
[1747930294112,19.47798986,179.69,179.62,6.0219]
[1747930294314,36.35961055,179.69,179.62,6.0219]
[1747930295634,19.47798986,179.69,179.6,69.56]
[1747930295811,19.47798986,179.69,179.6,36.16]
[1747930296141,36.35961055,179.69,179.61,33.38]
[1747930296419,16.88162069,179.68,179.61,33.38]
[1747930296606,19.47798986,179.69,179.61,33.38]
[1747930296814,36.35961055,179.69,179.61,33.38]
[1747930297006,16.88162069,179.68,179.61,33.38]
[1747930297518,36.35961055,179.69,179.61,33.38]
[1747930297823,26.0,179.66,179.61,33.38]
[1747930298320,42.88162069,179.68,179.61,33.38]
[1747930298500,26.0,179.68,179.62,18.64964886]
[1747930299016,36.35961055,179.69,179.62,18.64964886]
[1747930301530,19.47798986,179.69,179.61,38.94759024]
[1747930301712,19.47798986,179.69,179.61,33.38]
[1747930301903,16.88162069,179.68,179.58,208.22]
[1747930302220,16.88162069,179.68,179.59,88.14964886]
[1747930303800,5.56575944,179.67,179.59,88.14964886]
[1747930304007,5.56575944,179.67,179.6,36.12]
[1747930305113,19.47798986,179.69,179.6,36.12]
[1747930305338,36.35961055,179.69,179.6,36.12]
[1747930308902,36.35961055,179.69,179.61,36.12]
[1747930310131,19.47798986,179.69,179.61,36.12]
[1747930310514,36.35961055,179.69,179.61,36.12]
[1747930311731,5.56575944,179.67,179.61,36.12]
[1747930313637,5.56575944,179.67,179.59,52.02964886]
[1747930313638,19.48015805,179.67,179.62,35.68]
[1747930315029,5.56575944,179.67,179.62,35.68]
[1747930315228,5.56421099,179.72,179.63,18.64964886]
[1747930315437,31.56421099,179.72,179.65,18.64964886]
[1747930315746,45.47473847,179.72,179.65,18.64964886]
[1747930317640,16.88162069,179.71,179.64,6.3521]
[1747930317938,16.88162069,179.71,179.66,69.04]
[1747930318135,16.88162069,179.71,179.62,18.64964886]
[1747930318342,42.88162069,179.69,179.63,69.04]
[1747930318553,5.56544968,179.68,179.63,69.04]
[1747930319116,19.4790739,179.68,179.63,69.04]
[1747930321548,36.36069459,179.68,179.64,69.04]
[1747930322218,16.88162069,179.66,179.65,69.04]
[1747930322413,18.95828326,179.66,179.65,69.04]
[1747930323138,28.07666257,179.66,179.65,69.04]
[1747930323939,5.56544968,179.68,179.65,69.04]
[1747930324249,13.91162916,179.71,179.65,69.04]
[1747930324541,2.07808751,179.7,179.65,69.04]
[1747930325430,2.07808751,179.69,179.65,69.04]
[1747930326171,62.35777046,179.71,179.65,69.04]
[1747930326514,16.88162069,179.69,179.66,69.04]
[1747930326916,2.08013692,179.68,179.66,69.04]
[1747930327357,26.0,179.67,179.66,69.04]
[1747930328455,48.44738013,179.67,179.66,69.04]
[1747930329050,64.44218076,179.67,179.66,69.04]
[1747930329422,64.44218076,179.67,179.66,35.68]
[1747930329623,68.60309735,179.67,179.66,35.68]
[1747930334769,11.80707805,179.67,179.66,69.04]
[1747930335475,9.72667603,179.67,179.66,69.04]
[1747930336545,5.56513996,179.69,179.66,69.04]
[1747930340572,22.44676065,179.69,179.66,69.04]
[1747930341072,42.88162069,179.67,179.6,6.3553]
[1747930341242,42.88162069,179.67,179.61,69.04]
[1747930341243,16.88162069,179.65,179.61,69.04]
[1747930341447,42.88162069,179.64,179.59,7.9607066]
[1747930341774,16.88162069,179.63,179.6,69.04]
[1747930342569,42.88162069,179.61,179.53,7.9607066]
[1747930342757,16.88162069,179.57,179.54,69.58]
[1747930343157,5.56885894,179.57,179.54,69.58]
[1747930343870,22.45047963,179.57,179.54,69.58]
[1747930344261,26.0,179.53,179.5,6.1519]
[1747930344458,26.0,179.53,179.51,69.58]
[1747930344782,16.88162069,179.52,179.51,33.38]
[1747930345085,42.88162069,179.53,179.51,69.6]
[1747930345276,26.0,179.53,179.51,69.6]
[1747930345879,5.57040998,179.52,179.51,69.6]
[1747930347980,5.56978946,179.54,179.51,69.6]
[1747930350080,5.56916907,179.56,179.51,69.6]
[1747930350289,36.37371245,179.56,179.51,69.6]
[1747930350460,16.88162069,179.55,179.51,36.22]
[1747930350663,16.88162069,179.54,179.52,33.38]
[1747930351166,42.88162069,179.54,179.52,33.38]
[1747930351355,26.0,179.52,179.51,36.22]
[1747930351556,42.88162069,179.52,179.51,36.22]
[1747930352167,48.45203067,179.52,179.51,36.22]
[1747930352385,31.57040998,179.52,179.51,36.22]
[1747930352785,31.57040998,179.52,179.51,69.6]
[1747930353882,26.0,179.54,179.51,69.6]
[1747930354064,5.56947925,179.55,179.51,69.6]
[1747930354266,36.37479807,179.55,179.51,69.6]
[1747930354781,16.88162069,179.54,179.51,69.6]
[1747930355788,42.88162069,179.52,179.51,36.22]
[1747930355967,42.88162069,179.52,179.49,36.24]
[1747930356194,16.88162069,179.5,179.49,36.24]
[1747930356390,22.45265133,179.5,179.49,36.24]
[1747930359080,48.45265133,179.5,179.49,36.24]
[1747930359282,31.57103064,179.5,179.49,36.24]
[1747930359481,48.45265133,179.5,179.49,36.24]
[1747930359682,31.57103064,179.5,179.49,36.24]
[1747930359874,5.57103064,179.5,179.49,36.24]
[1747930361873,26.0,179.52,179.49,36.24]
[1747930361874,5.57072029,179.51,179.49,36.24]
[1747930362070,5.57072029,179.51,179.5,33.38]
[1747930364164,22.45234098,179.51,179.49,36.24]
[1747930364387,16.88162069,179.5,179.49,69.64]
[1747930364575,16.88162069,179.5,179.49,36.24]
[1747930365171,22.45234098,179.51,179.49,36.24]
[1747930366196,16.88162069,179.5,179.49,36.24]
[1747930367477,26.0,179.48,179.44,69.64]
[1747930367675,16.88162069,179.47,179.44,69.64]
[1747930368218,26.0,179.45,179.44,69.64]
[1747930368510,26.0,179.45,179.44,36.24]
[1747930370193,31.57258289,179.45,179.44,36.24]
[1747930374285,31.57258289,179.45,179.44,69.64]
[1747930378630,31.27733949,179.45,179.44,69.64]
[1747930380505,31.27733949,179.45,179.44,36.24]
[1747930380706,48.15896018,179.45,179.44,36.24]
[1747930382129,31.27733949,179.45,179.44,36.24]
[1747930384208,48.15896018,179.45,179.44,36.24]
[1747930385426,31.27733949,179.45,179.44,36.24]
[1747930385633,48.15896018,179.45,179.44,36.24]
[1747930386741,31.27733949,179.45,179.44,36.24]
[1747930387741,5.57258289,179.45,179.44,36.24]
[1747930388049,5.57103064,179.5,179.44,42.4497]
[1747930388219,5.57103064,179.5,179.45,33.4]
[1747930388704,19.49860724,179.5,179.45,33.4]
[1747930388906,36.38022793,179.5,179.45,33.4]
[1747930390120,36.38022793,179.5,179.44,36.24]
[1747930390121,26.0,179.45,179.44,36.24]
[1747930390337,16.88162069,179.45,179.42,36.58]
[1747930390505,16.88162069,179.43,179.42,36.58]
[1747930390710,22.45482472,179.43,179.42,36.58]
[1747930391542,5.57320403,179.43,179.42,36.58]
[1747930393014,22.45482472,179.43,179.42,36.58]
[1747930394850,24.52860148,179.43,179.42,36.58]
[1747930396219,22.45482472,179.43,179.42,36.58]
[1747930398130,26.0,179.4,179.37,36.58]
[1747930398330,42.88162069,179.4,179.37,36.58]
[1747930399138,16.88162069,179.39,179.37,36.58]
[1747930399845,5.57475749,179.38,179.37,36.58]
[1747930400037,22.45637818,179.38,179.37,36.58]
[1747930400220,5.57475749,179.38,179.37,36.58]
[1747930401450,5.574136,179.4,179.37,36.58]
[1747930401646,5.574136,179.4,179.38,33.42]
[1747930402023,13.93242519,179.44,179.38,33.42]
[1747930402936,30.81404588,179.44,179.38,33.42]
[1747930403948,5.574136,179.4,179.38,33.42]
[1747930404728,16.88162069,179.39,179.35,37.0]
[1747930404929,16.88162069,179.38,179.35,37.0]
[1747930406050,5.57475749,179.38,179.35,37.0]
[1747930408795,22.45637818,179.38,179.35,37.0]
[1747930409728,5.57475749,179.38,179.35,37.0]
[1747930410350,22.45637818,179.38,179.35,37.0]
[1747930410737,16.88162069,179.37,179.35,37.0]
[1747930410946,22.45637818,179.38,179.35,37.0]
[1747930411656,22.45637818,179.38,179.35,70.42]
[1747930411657,5.57475749,179.38,179.35,70.42]
[1747930413057,5.57475749,179.38,179.36,33.42]
[1747930414365,5.57475749,179.38,179.35,37.0]
[1747930414661,5.57475749,179.38,179.36,33.42]
[1747930415763,22.45637818,179.38,179.35,37.0]
[1747930416063,16.88162069,179.37,179.35,70.42]
[1747930417162,22.45637818,179.38,179.35,70.42]
[1747930417851,5.57475749,179.38,179.35,70.42]
[1747930418054,5.57351465,179.42,179.36,1.5598]
[1747930419662,19.50547524,179.44,179.36,1.5598]
[1747930419958,16.88162069,179.43,179.37,33.42]
[1747930420769,36.38709593,179.44,179.37,33.42]
[1747930421853,13.9325818,179.44,179.37,33.42]
[1747930422177,13.9325818,179.44,179.38,6.4688]
[1747930429182,19.50547524,179.44,179.38,6.4688]
[1747930431266,13.9325818,179.44,179.38,6.4688]
[1747930431460,13.9325818,179.44,179.39,37.0]
[1747930433669,13.9325818,179.44,179.4,33.42]
[1747930437193,5.57258289,179.45,179.4,33.42]
[1747930437888,19.50230896,179.47,179.4,33.42]
[1747930438091,5.57196188,179.47,179.43,26.0]
[1747930438268,5.57103064,179.5,179.43,26.0]
[1747930438469,5.57103064,179.5,179.41,18.64964886]
[1747930438670,5.57103064,179.5,179.43,1.6477]
[1747930438970,5.57103064,179.5,179.44,18.64964886]
[1747930439168,5.5700997,179.53,179.46,6.1623]
[1747930440776,5.5700997,179.53,179.46,11.73452714]
[1747930440978,5.5700997,179.53,179.46,6.1623]
[1747930441304,5.5700997,179.53,179.46,11.73452503]
[1747930441591,5.5700997,179.53,179.47,18.64964886]
[1747930442282,5.56947925,179.55,179.47,18.64964886]
[1747930443111,5.56947925,179.55,179.47,24.22160905]
[1747930443289,5.56947925,179.55,179.47,18.64964886]
[1747930443489,5.56947925,179.55,179.47,24.2215725]
[1747930443795,5.56947925,179.55,179.48,26.0]
[1747930443989,5.56947925,179.55,179.5,26.0]
[1747930444312,30.80424708,179.57,179.51,69.98]
[1747930444313,19.49148533,179.57,179.51,69.98]
[1747930444785,5.56668893,179.64,179.57,26.0]
[1747930444991,5.56668893,179.64,179.58,69.98]
[1747930446141,5.56637907,179.65,179.58,69.98]
[1747930449106,13.91572246,179.66,179.57,30.44734222]
[1747930449708,5.56544968,179.68,179.61,26.0]
[1747930450102,16.88162069,179.67,179.61,26.0]
[1747930450610,16.88162069,179.67,179.62,69.96]
[1747930451019,5.56606924,179.66,179.62,69.96]
[1747930451821,5.56483027,179.7,179.65,26.0]
[1747930452019,22.44645096,179.7,179.65,26.0]
[1747930452199,5.56483027,179.7,179.65,26.0]
[1747930454707,19.47605435,179.71,179.65,26.0]
[1747930455618,5.56359185,179.74,179.69,26.0]
[1747930455913,16.88162069,179.72,179.7,69.94]
[1747930456619,16.88162069,179.71,179.7,69.94]
[1747930456813,22.4461413,179.71,179.7,69.94]
[1747930456999,22.4461413,179.71,179.66,26.0]
[1747930457000,36.35744284,179.71,179.68,36.56]
[1747930457206,16.88162069,179.69,179.67,69.94]
[1747930458329,19.47582215,179.71,179.67,69.94]
[1747930458623,36.35744284,179.71,179.67,69.94]
[1747930461435,5.56452061,179.71,179.67,69.94]
[1747930462322,5.56452061,179.71,179.67,95.94]
[1747930463539,5.56421099,179.72,179.67,95.94]
[1747930463831,16.88162069,179.75,179.7,26.0]
[1747930464026,16.88162069,179.75,179.71,33.36]
[1747930466033,5.56359185,179.74,179.71,33.36]
[1747930468881,6.19472315,179.78,179.72,18.64964886]
[1747930469128,13.90303147,179.82,179.73,36.12]
[1747930469129,5.56142594,179.81,179.73,36.12]
[1747930470020,13.90303147,179.82,179.73,36.12]
[1747930470333,13.90303147,179.82,179.74,18.64964886]
[1747930470633,13.90303147,179.82,179.75,33.36]
[1747930471338,19.46414814,179.82,179.75,33.36]
[1747930473819,5.56111667,179.82,179.75,33.36]
[1747930474126,5.56111667,179.82,179.78,18.64964886]
[1747930474326,5.56111667,179.82,179.79,36.12]
[1747930474536,5.56111667,179.82,179.8,33.36]
[1747930474732,5.56049822,179.84,179.8,33.36]
[1747930475131,16.88162069,179.87,179.81,18.64964886]
[1747930475431,16.88162069,179.87,179.79,54.76964886]
[1747930475631,16.88162069,179.87,179.8,33.36]
[1747930476328,16.88162069,179.84,179.8,33.36]
[1747930477549,16.88162069,179.85,179.8,33.36]
[1747930479433,12.8249372,179.94,179.8,33.36]
[1747930479434,19.45676248,179.89,179.8,38.92173422]
[1747930479641,16.88162069,179.88,179.81,18.64964886]
[1747930479838,26.0,179.88,179.81,18.64964886]
[1747930480441,5.5595708,179.87,179.81,24.21101104]
[1747930481652,5.5595708,179.87,179.81,24.21106092]
[1747930482256,5.5595708,179.87,179.81,18.64964886]
[1747930483748,16.88162069,179.86,179.8,33.36]
[1747930484063,16.88162069,179.86,179.78,18.64964886]
[1747930484234,16.88162069,179.86,179.79,69.44]
[1747930484563,19.4584978,179.87,179.79,69.44]
[1747930484766,5.56018904,179.85,179.79,69.44]
[1747930485141,26.0,179.88,179.8,18.79181043]
[1747930485142,16.88162069,179.88,179.8,18.79181043]
[1747930485546,13.89703556,179.9,179.8,18.79181043]
[1747930485834,16.88162069,179.87,179.8,18.64964886]
[1747930486259,5.5598799,179.86,179.8,24.2113242]
[1747930487269,5.5595708,179.87,179.8,24.2113242]
[1747930488865,16.88162069,179.87,179.8,24.2113242]
[1747930489963,5.5598799,179.86,179.8,24.2113242]
[1747930490386,19.45256363,179.93,179.81,0.14216157]
[1747930490544,16.88162069,179.9,179.83,0.14216157]
[1747930490864,16.88162069,179.9,179.85,18.64964886]
[1747930491062,16.88162069,179.9,179.86,36.1]
[1747930491567,22.4404611,179.9,179.86,36.1]
[1747930493444,5.55884041,179.9,179.86,36.1]
[1747930493749,22.4404611,179.9,179.86,36.1]
[1747930494156,5.55884041,179.9,179.86,36.1]
[1747930494558,22.4404611,179.9,179.86,36.1]
[1747930494867,5.55884041,179.9,179.86,36.1]
[1747930495252,22.4404611,179.9,179.86,36.1]
[1747930496053,36.333044,179.94,179.87,18.64964886]
[1747930496353,16.88162069,179.92,179.87,18.64964886]
[1747930497373,5.55833472,179.91,179.87,18.64964886]
[1747930497561,5.55833472,179.91,179.86,36.1]
[1747930497760,22.43995541,179.91,179.87,69.12]
[1747930498357,5.55833472,179.91,179.87,69.12]
[1747930499553,22.43964647,179.92,179.87,69.12]
[1747930500173,36.33471094,179.92,179.87,69.12]
[1747930500476,36.33471094,179.92,179.88,69.12]
[1747930500477,16.88162069,179.9,179.88,69.12]
[1747930500879,16.88162069,179.91,179.88,69.12]
[1747930501554,5.55864369,179.9,179.88,69.12]
[1747930501976,5.55679039,179.96,179.88,69.12]
[1747930502288,16.90162069,180.0,179.92,26.0]
[1747930502459,16.90162069,180.0,179.93,33.32]
[1747930502649,16.88162069,179.99,179.94,35.8]
[1747930502851,16.88162069,179.98,179.94,35.8]
[1747930503051,16.88162069,179.96,179.94,35.8]
[1747930503355,16.88162069,179.97,179.94,35.8]
[1747930503761,5.55679039,179.96,179.94,35.8]
[1747930504163,16.88162069,179.95,179.94,35.8]
[1747930504852,16.88162069,179.95,179.93,35.8]
[1747930505273,16.88162069,179.94,179.93,35.8]
[1747930505853,13.89197599,179.96,179.93,35.8]
[1747930506163,30.77359668,179.96,179.93,35.8]
[1747930507180,16.88162069,179.94,179.93,35.8]
[1747930507553,16.88162069,179.94,179.86,26.0]
[1747930507886,19.4520091,179.93,179.87,95.12]
[1747930509779,5.55771688,179.93,179.87,95.12]
[1747930509956,30.77395506,179.96,179.87,95.12]
[1747930510286,2.06492353,179.95,179.87,95.12]
[1747930511479,5.55648163,179.97,179.87,100.67956889]
[1747930511682,5.55648163,179.97,179.88,18.64964886]
[1747930511984,5.5561729,179.98,179.88,18.64964886]
[1747930512161,36.32822586,179.98,179.88,18.64964886]
[1747930512489,2.06622635,179.97,179.88,18.64964886]
[1747930512970,2.06622635,179.96,179.88,23.06195512]
[1747930513303,2.06622635,179.96,179.95,16.82930935]
[1747930513464,5.5561729,179.98,179.94,52.62930935]